bitfinex/quotes_BTCUSD_20251025
["timestamp","ask_amount","ask_price","bid_price","bid_amount"]
[1761365911513,9.77155521,111500.0,111490.0,1.34381992]
[1761365911718,9.77155521,111500.0,111490.0,1.34181992]
[1761365912950,9.77155521,111500.0,111490.0,1.34177992]
[1761365913548,9.77155521,111500.0,111490.0,1.68177992]
[1761365914310,9.77155521,111500.0,111490.0,1.71372675]
[1761365914514,9.77155521,111500.0,111490.0,1.73970016]
[1761365914709,9.77155521,111500.0,111490.0,1.72371758]
[1761365914710,9.24118164,111500.0,111490.0,1.72371758]
[1761365915038,9.02332678,111500.0,111490.0,1.72371758]
[1761365915250,8.91141167,111500.0,111490.0,1.73970016]
[1761365916197,8.91141167,111500.0,111490.0,1.72372345]
[1761365918775,8.91141167,111500.0,111490.0,1.55168346]
[1761365918996,8.91141167,111500.0,111490.0,1.77084346]
[1761365920312,8.91141167,111500.0,111490.0,1.79478987]
[1761365920745,8.91141167,111500.0,111490.0,1.77084346]
[1761365925458,8.91141167,111500.0,111490.0,1.81876371]
[1761365926709,8.91141167,111500.0,111490.0,1.63196219]
[1761365927442,8.91141167,111500.0,111490.0,1.41280219]
[1761365927642,8.91141167,111500.0,111490.0,1.63168219]
[1761365929855,8.91141167,111500.0,111490.0,1.41280219]
[1761365930063,8.91141167,111500.0,111490.0,1.63160219]
[1761365930275,8.91141167,111500.0,111490.0,1.59965865]
[1761365930685,8.91141167,111500.0,111490.0,1.58353634]
[1761365930912,8.91141167,111500.0,111490.0,1.60747791]
[1761365931329,8.91141167,111500.0,111490.0,1.58353634]
[1761365932570,8.91141167,111500.0,111490.0,1.23598751]
[1761365932783,8.91141167,111500.0,111490.0,1.17854751]
[1761365932988,8.91141167,111500.0,111490.0,1.58349634]
[1761365933189,8.91141167,111500.0,111490.0,1.63141659]
[1761365934001,8.91141167,111500.0,111490.0,1.41277659]
[1761365934221,8.91141167,111500.0,111490.0,1.52609634]
[1761365934366,8.91141167,111500.0,111490.0,1.57401659]
[1761365934553,8.91141167,111500.0,111490.0,1.54209865]
[1761365936750,8.91141167,111500.0,111490.0,1.80626942]
[1761365937426,8.91141167,111500.0,111490.0,1.83224283]
[1761365937643,8.91141167,111500.0,111490.0,1.67100283]
[1761365937849,8.91141167,111500.0,111490.0,1.81570917]
[1761365938188,8.91141167,111500.0,111490.0,1.87960284]
[1761365939392,8.91141167,111500.0,111490.0,1.66100284]
[1761365939620,8.91141167,111500.0,111490.0,1.82216284]
[1761365940057,8.91141167,111500.0,111490.0,1.87956284]
[1761365944566,8.91141167,111500.0,111490.0,1.66100284]
[1761365944781,8.91141167,111500.0,111490.0,1.87948284]
[1761365947282,8.91141167,111500.0,111490.0,1.81558917]
[1761365948300,8.91141167,111500.0,111490.0,1.20386957]
[1761365948513,8.91141167,111500.0,111490.0,1.81558917]
[1761365949591,8.91141167,111500.0,111490.0,1.87973801]
[1761365956687,8.91141167,111500.0,111490.0,0.60920729]
[1761365956910,9.21727147,111500.0,111490.0,0.34943515]
[1761365957127,8.91141167,111500.0,111490.0,0.34943515]
[1761365957341,8.91141167,111500.0,111490.0,0.30130048]
[1761365957567,9.09078386,111500.0,111490.0,0.30130048]
[1761365957927,9.09078386,111500.0,111490.0,0.30330048]
[1761365958136,8.91141167,111500.0,111490.0,0.30930048]
[1761365958318,8.91141167,111500.0,111490.0,0.30730048]
[1761365958718,8.91141167,111500.0,111490.0,0.30930048]
[1761365959343,9.21727147,111500.0,111490.0,0.30930048]
[1761365959551,8.91141167,111500.0,111490.0,0.30930048]
[1761365960022,9.39664366,111500.0,111490.0,0.1299122]
[1761365960199,9.39664366,111500.0,111490.0,0.09781901]
[1761365960200,9.70250346,111500.0,111490.0,0.09781901]
[1761365960457,9.39664366,111500.0,111490.0,0.09781901]
[1761365960666,9.70250346,111500.0,111490.0,0.09781901]
[1761365960872,9.70250346,111500.0,111490.0,0.08981901]
[1761365961099,9.70250346,111500.0,111470.0,0.22430953]
[1761365961100,0.17940048,111490.0,111470.0,0.22430953]
[1761365961311,0.17940048,111490.0,111480.0,0.08981901]
[1761365961312,0.48526028,111490.0,111480.0,0.08981901]
[1761365963433,0.17940437,111480.0,111470.0,0.00414735]
[1761365963644,0.17940437,111480.0,111470.0,0.09396636]
[1761365963845,0.48526417,111480.0,111470.0,0.09396636]
[1761365964662,0.48526417,111480.0,111470.0,0.09596636]
[1761365965066,0.48526417,111480.0,111470.0,0.10496636]
[1761365965977,0.98526417,111480.0,111470.0,0.10496636]
[1761365966215,0.98526417,111480.0,111470.0,0.10296636]
[1761365966457,1.48526417,111480.0,111470.0,0.09496636]
[1761365966671,1.4896552,111480.0,111470.0,0.10196636]
[1761365967449,1.1837954,111480.0,111470.0,0.10196636]
[1761365967635,1.4896552,111480.0,111470.0,0.10196636]
[1761365968265,1.00439103,111480.0,111470.0,0.58724663]
[1761365970847,1.00439103,111480.0,111470.0,0.28138683]
[1761365972136,1.1837954,111480.0,111470.0,0.28138683]
[1761365972412,1.00439103,111480.0,111470.0,0.28138683]
[1761365973664,1.00439103,111480.0,111470.0,0.62921184]
[1761365982498,1.00439103,111480.0,111470.0,0.78961184]
[1761365982952,1.00439103,111480.0,111470.0,1.12961184]
[1761365983602,1.00439103,111480.0,111470.0,1.12861184]
[1761365983825,1.00439103,111480.0,111470.0,1.12161184]
[1761365984318,1.00439103,111480.0,111470.0,1.13461184]
[1761365984782,1.00439103,111480.0,111470.0,1.13661184]
[1761365985197,1.00439103,111480.0,111470.0,1.16870503]
[1761365986374,1.00439103,111480.0,111470.0,1.20488731]
[1761365986607,1.00439103,111480.0,111470.0,1.5687538]
[1761365986860,1.00439103,111480.0,111470.0,1.40720811]
[1761365992932,1.00439103,111480.0,111470.0,1.48488322]
[1761366003261,1.00439103,111480.0,111470.0,0.6765215]
[1761366003479,1.00439103,111480.0,111470.0,1.23179076]
[1761366003680,1.00439103,111480.0,111470.0,1.18365609]
[1761366006593,1.00439103,111480.0,111470.0,0.96629609]
[1761366006798,1.00439103,111480.0,111470.0,0.82028637]
[1761366007098,1.00439103,111480.0,111470.0,0.48028637]
[1761366007284,1.00439103,111480.0,111470.0,0.78617609]
[1761366007503,1.00439103,111480.0,111470.0,0.77599609]
[1761366007662,1.00439103,111480.0,111470.0,0.90385655]
[1761366007841,1.00439103,111480.0,111470.0,0.74397655]
[1761366008088,1.00439103,111480.0,111470.0,0.90385655]
[1761366008539,1.00439103,111480.0,111470.0,0.89085655]
[1761366008892,1.00439103,111480.0,111470.0,0.89785655]
[1761366009340,1.00439103,111480.0,111470.0,0.59196683]
[1761366010011,1.00439103,111480.0,111470.0,0.58996683]
[1761366010241,1.00439103,111480.0,111470.0,0.59196683]
[1761366010445,1.00439103,111480.0,111470.0,0.89785655]
[1761366010656,1.1837954,111480.0,111470.0,0.25066636]
[1761366010902,1.1837954,111480.0,111470.0,0.43208683]
[1761366011872,1.1837954,111480.0,111470.0,0.28238683]
[1761366014781,1.1837954,111480.0,111470.0,0.10296636]
[1761366015656,1.1837954,111480.0,111470.0,0.09596636]
[1761366015884,1.1837954,111480.0,111470.0,0.00414735]
[1761366016117,1.1837954,111480.0,111450.0,0.004]
[1761366016118,0.17943656,111460.0,111450.0,0.004]
[1761366016343,0.17958355,111460.0,111450.0,0.004]
[1761366017016,0.51242687,111460.0,111450.0,0.004]
[1761366017756,0.51242687,111460.0,111450.0,0.005]
[1761366018688,0.53600357,111460.0,111450.0,0.006]
[1761366019154,0.53600357,111460.0,111450.0,0.005]
[1761366019372,0.87600357,111460.0,111450.0,0.005]
[1761366020464,0.87600357,111460.0,111450.0,0.004]
[1761366020465,0.87800357,111460.0,111450.0,0.004]
[1761366020697,0.57211385,111460.0,111450.0,0.004]
[1761366020909,0.95315837,111460.0,111450.0,0.004]
[1761366021563,0.95687452,111460.0,111450.0,0.004]
[1761366021800,0.88171972,111460.0,111450.0,0.004]
[1761366022419,0.5522533,111460.0,111450.0,0.004]
[1761366022818,0.2122533,111460.0,111450.0,0.004]
[1761366023256,0.2102533,111460.0,111450.0,0.004]
[1761366023701,0.2102533,111460.0,111450.0,0.005]
[1761366029711,0.51614302,111460.0,111450.0,0.005]
[1761366037102,0.2102533,111460.0,111450.0,0.005]
[1761366042588,0.2102533,111460.0,111450.0,0.18445266]
[1761366042794,0.00386314,111460.0,111450.0,0.18445266]
[1761366043824,0.00386314,111460.0,111450.0,0.41445266]
[1761366044026,0.1832997,111460.0,111450.0,0.41445266]
[1761366048468,0.00386314,111460.0,111450.0,1.66319111]
[1761366048674,0.00386314,111460.0,111450.0,1.54958428]
[1761366049673,0.00386314,111460.0,111450.0,1.54858428]
[1761366050161,0.00386314,111460.0,111450.0,1.55058428]
[1761366051285,0.00386314,111460.0,111450.0,1.52356474]
[1761366052595,0.00386314,111460.0,111450.0,1.30608474]
[1761366052771,0.00386314,111460.0,111450.0,1.52356474]
[1761366053574,0.00386314,111460.0,111450.0,1.36352474]
[1761366053812,0.00386314,111460.0,111450.0,1.52356474]
[1761366054493,0.00386314,111460.0,111450.0,1.36352474]
[1761366054701,0.00386314,111460.0,111450.0,1.52348474]
[1761366055101,0.00386314,111460.0,111450.0,1.36352474]
[1761366055367,0.00386314,111460.0,111450.0,1.52348474]
[1761366056309,0.00386314,111460.0,111450.0,1.36352474]
[1761366056505,0.00386314,111460.0,111450.0,1.52344474]
[1761366058439,0.00386314,111460.0,111450.0,1.52340474]
[1761366059106,0.00386314,111460.0,111450.0,1.36352474]
[1761366059294,0.00386314,111460.0,111450.0,1.52340474]
[1761366059502,0.00386314,111460.0,111450.0,1.52336474]
[1761366059859,0.00386314,111460.0,111450.0,1.36352474]
[1761366060054,0.00386314,111460.0,111450.0,1.52336474]
[1761366061576,0.00386314,111460.0,111450.0,1.30608474]
[1761366061796,0.00386314,111460.0,111450.0,1.52336474]
[1761366063339,0.00386314,111460.0,111450.0,1.52332474]
[1761366063746,0.00386314,111460.0,111450.0,1.36352474]
[1761366063949,0.00386314,111460.0,111450.0,1.52328474]
[1761366064868,0.00386314,111460.0,111450.0,1.36352474]
[1761366065294,0.00386314,111460.0,111450.0,1.52324474]
[1761366065515,0.00386314,111460.0,111450.0,1.36352474]
[1761366065704,0.00386314,111460.0,111450.0,1.52324474]
[1761366066823,0.00386314,111460.0,111450.0,1.55019263]
[1761366070325,0.00386314,111460.0,111450.0,1.58221217]
[1761366074395,0.00386314,111460.0,111450.0,1.55526428]
[1761366077364,0.00386314,111460.0,111450.0,1.60339895]
[1761366078193,1.4876529,111480.0,111470.0,0.17942047]
[1761366078396,1.4876529,111480.0,111470.0,0.42871948]
[1761366078615,1.18153983,111480.0,111470.0,0.42871948]
[1761366078832,1.4876529,111480.0,111470.0,0.42871948]
[1761366079049,1.4876529,111480.0,111470.0,0.42867948]
[1761366079495,1.4876529,111480.0,111470.0,0.42967948]
[1761366079716,0.99316523,111480.0,111470.0,0.42967948]
[1761366079984,1.1725696,111480.0,111470.0,0.43067948]
[1761366080781,1.1725696,111480.0,111470.0,0.27123948]
[1761366080966,1.1725696,111480.0,111470.0,0.43063948]
[1761366081535,1.1725696,111480.0,111470.0,0.27123948]
[1761366081731,1.1725696,111480.0,111470.0,0.43063948]
[1761366083695,1.17324481,111480.0,111470.0,0.43063948]
[1761366086376,1.47935788,111480.0,111470.0,0.43063948]
[1761366087624,1.17324481,111480.0,111470.0,0.43063948]
[1761366087914,1.47935788,111480.0,111470.0,0.43063948]
[1761366088356,1.47935788,111480.0,111470.0,0.25109901]
[1761366088567,1.47935788,111480.0,111470.0,0.43051948]
[1761366089443,1.47935788,111480.0,111470.0,0.25109901]
[1761366090395,1.47935788,111480.0,111470.0,0.09181901]
[1761366090596,1.47935788,111480.0,111470.0,0.25109901]
[1761366093447,1.47935788,111480.0,111470.0,0.25097901]
[1761366093640,1.47935788,111480.0,111470.0,0.09181901]
[1761366094062,1.47935788,111480.0,111470.0,0.16116]
[1761366094467,1.47935788,111480.0,111470.0,0.002]
[1761366097792,1.78547095,111480.0,111470.0,0.002]
[1761366103090,1.17324481,111480.0,111470.0,0.002]
[1761366103295,1.78547095,111480.0,111470.0,0.002]
[1761366106625,0.17943656,111460.0,111450.0,0.19242295]
[1761366106822,0.17943656,111460.0,111450.0,0.28224196]
[1761366107616,0.17943656,111460.0,111450.0,0.62224196]
[1761366107825,0.48554963,111460.0,111450.0,0.344]
[1761366108047,0.48554963,111460.0,111450.0,0.004]
[1761366108703,0.48575669,111460.0,111450.0,0.006]
[1761366108931,0.48575669,111460.0,111450.0,0.009]
[1761366109594,0.48575669,111460.0,111450.0,0.006]
[1761366110110,0.48575669,111460.0,111450.0,0.005]
[1761366111324,0.48575669,111460.0,111450.0,0.006]
[1761366112548,0.48575669,111460.0,111450.0,0.005]
[1761366112763,0.20183759,111470.0,111450.0,0.40113914]
[1761366112971,0.17977214,111470.0,111460.0,0.39613914]
[1761366113173,0.17977214,111470.0,111460.0,0.08981901]
[1761366114224,0.17977214,111470.0,111460.0,0.20981901]
[1761366114631,0.17977214,111470.0,111460.0,0.38925557]
[1761366115506,0.17977214,111470.0,111460.0,0.39025557]
[1761366116505,0.17977214,111470.0,111460.0,0.39125557]
[1761366123974,0.00033763,111470.0,111460.0,0.39125557]
[1761366124172,0.1797581,111470.0,111460.0,0.39125557]
[1761366127726,0.1797581,111470.0,111460.0,0.21181901]
[1761366133061,0.48607823,111470.0,111460.0,0.122]
[1761366140572,0.91589724,111470.0,111460.0,0.122]
[1761366140808,0.82607823,111470.0,111460.0,0.122]
[1761366141023,0.85303421,111470.0,111460.0,0.002]
[1761366141235,0.85303421,111470.0,111460.0,0.001]
[1761366141714,0.85503421,111470.0,111460.0,0.001]
[1761366142314,0.17943656,111460.0,111450.0,0.004]
[1761366142523,0.48575669,111460.0,111450.0,0.004]
[1761366143532,0.17943656,111460.0,111450.0,0.005]
[1761366144359,0.18043656,111460.0,111450.0,0.005]
[1761366144557,0.48675669,111460.0,111450.0,0.005]
[1761366146243,0.51371422,111460.0,111450.0,0.005]
[1761366149777,3.06953452,111460.0,111450.0,0.005]
[1761366153803,3.16402452,111460.0,111450.0,0.005]
[1761366154020,3.06853452,111460.0,111450.0,0.005]
[1761366154418,3.07453452,111460.0,111450.0,0.004]
[1761366156434,3.09456829,111460.0,111450.0,0.004]
[1761366157248,3.40088842,111460.0,111450.0,0.004]
[1761366157456,3.41088841,111460.0,111450.0,0.004]
[1761366159427,3.40088842,111460.0,111450.0,0.004]
[1761366159670,3.41088841,111460.0,111450.0,0.004]
[1761366161046,3.41088841,111460.0,111450.0,1e-08]
[1761366161277,3.43503807,111460.0,111450.0,1e-08]
[1761366161638,3.53952806,111460.0,111450.0,1e-08]
[1761366161881,3.57191047,111460.0,111450.0,1e-08]
[1761366169986,3.5518767,111460.0,111450.0,1e-08]
[1761366170189,3.52772704,111460.0,111450.0,1e-08]
[1761366170965,3.82459474,111460.0,111450.0,1e-08]
[1761366171173,3.5422614,111460.0,111450.0,1e-08]
[1761366172264,3.82459474,111460.0,111450.0,1e-08]
[1761366175334,3.87316836,111460.0,111450.0,1e-08]
[1761366181382,3.86316837,111460.0,111450.0,1e-08]
[1761366181655,3.87316836,111460.0,111450.0,1e-08]
[1761366182440,3.56666571,111460.0,111450.0,1e-08]
[1761366182657,3.87316836,111460.0,111450.0,1e-08]
[1761366184253,3.84078595,111460.0,111450.0,1e-08]
[1761366187681,3.46677358,111460.0,111450.0,1e-08]
[1761366187886,3.32098195,111460.0,111450.0,1e-08]
[1761366188850,3.31498195,111460.0,111450.0,1e-08]
[1761366189619,3.31898195,111460.0,111450.0,1e-08]
[1761366199560,3.28667267,111460.0,111450.0,1e-08]
[1761366201169,3.37649168,111460.0,111450.0,1e-08]
[1761366201684,3.28667267,111460.0,111450.0,1e-08]
[1761366203116,2.54766608,111460.0,111450.0,1e-08]
[1761366203325,2.82993921,111460.0,111450.0,1e-08]
[1761366203501,3.13644186,111460.0,111450.0,1e-08]
[1761366220414,2.82993921,111460.0,111450.0,1e-08]
[1761366230812,2.82979778,111460.0,111450.0,1e-08]
[1761366232326,2.8540273,111460.0,111450.0,1e-08]
[1761366234009,0.8540273,111460.0,111450.0,1e-08]
[1761366247303,0.52343656,111460.0,111450.0,1e-08]
[1761366247926,0.18343656,111460.0,111450.0,0.17945267]
[1761366248497,0.17943656,111460.0,111450.0,0.17945267]
[1761366248699,0.18143656,111460.0,111450.0,0.17945267]
[1761366248960,0.17943656,111460.0,111450.0,0.17945267]
[1761366250359,0.17943656,111460.0,111450.0,0.18145267]
[1761366251784,0.1837581,111470.0,111450.0,0.48781389]
[1761366252115,0.17943656,111460.0,111450.0,0.27127168]
[1761366252644,0.17943656,111460.0,111450.0,0.27027168]
[1761366253157,0.17943656,111460.0,111450.0,0.27127168]
[1761366253306,0.17943656,111460.0,111450.0,0.27027168]
[1761366253472,0.17943656,111460.0,111450.0,0.26927168]
[1761366253677,0.17943656,111460.0,111450.0,0.27027168]
[1761366254189,0.17943656,111460.0,111450.0,0.27127168]
[1761366262642,0.1837581,111470.0,111450.0,0.27127168]
[1761366263483,0.1837581,111470.0,111460.0,0.17943656]
[1761366263698,0.1837581,111470.0,111450.0,0.27027168]
[1761366264302,0.1837581,111470.0,111460.0,0.17943656]
[1761366264502,0.1837581,111470.0,111450.0,0.26927168]
[1761366264725,0.1837581,111470.0,111450.0,0.27027168]
[1761366265125,0.1837581,111470.0,111450.0,0.26927168]
[1761366265488,0.1837581,111470.0,111460.0,0.001]
[1761366265892,0.1837581,111470.0,111450.0,0.26927168]
[1761366266335,0.1837581,111470.0,111450.0,0.27027168]
[1761366267279,0.1837581,111470.0,111450.0,0.29722415]
[1761366267975,0.1837581,111470.0,111450.0,0.27027168]
[1761366268624,0.1837581,111470.0,111460.0,0.15872]
[1761366268821,0.00433763,111470.0,111460.0,0.33815656]
[1761366269276,0.1837581,111470.0,111460.0,0.33815656]
[1761366269649,0.1837581,111470.0,111460.0,0.33915656]
[1761366270455,0.1837581,111470.0,111460.0,0.34015656]
[1761366271064,0.1837581,111470.0,111460.0,0.33911656]
[1761366271639,0.1837581,111470.0,111460.0,0.34011656]
[1761366276329,0.1837581,111470.0,111460.0,0.16068]
[1761366276530,0.1837581,111470.0,111460.0,0.34011656]
[1761366277483,0.1837581,111470.0,111460.0,0.16068]
[1761366278590,0.1837581,111470.0,111460.0,0.34011656]
[1761366279801,0.1837581,111470.0,111460.0,0.18143656]
[1761366281539,0.1837581,111470.0,111460.0,0.002]
[1761366287309,0.49011932,111470.0,111460.0,0.002]
[1761366288605,0.49011932,111470.0,111460.0,0.18143656]
[1761366289020,0.49011932,111470.0,111460.0,0.002]
[1761366291976,0.1837581,111470.0,111460.0,0.18143656]
[1761366292143,0.49011932,111470.0,111460.0,0.18143656]
[1761366292790,0.49001947,111470.0,111460.0,0.18143656]
[1761366295583,0.49001947,111470.0,111460.0,0.002]
[1761366295817,0.49001947,111470.0,111460.0,0.18143656]
[1761366296458,0.49001947,111470.0,111460.0,0.002]
[1761366296968,0.49001947,111470.0,111460.0,0.18143656]
[1761366298134,0.49001947,111470.0,111460.0,0.002]
[1761366298545,0.1837581,111470.0,111460.0,0.002]
[1761366298761,0.49001947,111470.0,111460.0,0.002]
[1761366315508,0.79628084,111470.0,111460.0,0.002]
[1761366315718,0.49001947,111470.0,111460.0,0.002]
[1761366315921,0.79628084,111470.0,111460.0,0.002]
[1761366316341,0.79628084,111470.0,111460.0,0.001]
[1761366316547,0.17943656,111460.0,111450.0,1e-08]
[1761366316818,0.7919593,111460.0,111450.0,1e-08]
[1761366317548,0.7919593,111460.0,111450.0,0.34000001]
[1761366318409,0.7919593,111460.0,111450.0,0.34100001]
[1761366318625,0.7919593,111460.0,111450.0,0.34200001]
[1761366321135,0.17943656,111460.0,111450.0,0.43181902]
[1761366321376,0.48569793,111460.0,111450.0,0.43181902]
[1761366324064,0.7919593,111460.0,111450.0,0.43181902]
[1761366324253,0.7919593,111460.0,111450.0,0.34200001]
[1761366327919,1.15891649,111460.0,111450.0,0.00200001]
[1761366328604,1.15891649,111460.0,111450.0,0.00100001]
[1761366352737,0.85274162,111460.0,111450.0,0.00100001]
[1761366352978,0.54639375,111460.0,111450.0,0.00100001]
[1761366353263,0.85274162,111460.0,111450.0,0.00100001]
[1761366354885,0.17943656,111460.0,111450.0,0.00100001]
[1761366359300,0.17943656,111460.0,111450.0,1e-08]
[1761366359510,0.17943656,111460.0,111450.0,0.00100001]
[1761366361061,0.17943656,111460.0,111450.0,0.00200001]
[1761366365599,0.17943656,111460.0,111450.0,0.41611215]
[1761366365795,0.17943656,111460.0,111450.0,0.39816689]
[1761366366002,0.17943656,111460.0,111450.0,0.42512008]
[1761366366784,0.17943656,111460.0,111450.0,0.60457274]
[1761366370075,0.17943656,111460.0,111450.0,0.42512008]
[1761366373108,0.17943656,111460.0,111450.0,0.58352008]
[1761366375084,0.17943656,111460.0,111450.0,0.76297274]
[1761366375463,0.17943656,111460.0,111450.0,0.73601955]
[1761366376845,0.17943656,111460.0,111450.0,0.55656689]
[1761366377717,0.17943656,111460.0,111450.0,0.73601955]
[1761366379226,0.17943656,111460.0,111450.0,0.55656689]
[1761366379418,0.17943656,111460.0,111450.0,0.25021902]
[1761366380956,0.17943656,111460.0,111450.0,0.73601955]
[1761366381156,0.17943656,111460.0,111450.0,0.55656689]
[1761366384596,0.17943656,111460.0,111450.0,0.25021902]
[1761366384798,0.17943656,111460.0,111450.0,0.55656689]
[1761366391680,0.17943656,111460.0,111450.0,0.25021902]
[1761366393858,0.17943656,111460.0,111450.0,0.55656689]
[1761366397695,0.17943656,111460.0,111450.0,0.25021902]
[1761366402916,0.17943656,111460.0,111450.0,0.09181902]
[1761366403124,0.17943656,111460.0,111450.0,0.25009902]
[1761366404018,0.17943656,111460.0,111450.0,0.09181902]
[1761366404255,0.17943656,111460.0,111450.0,0.25009902]
[1761366406907,0.17943656,111460.0,111450.0,0.55644689]
[1761366414925,0.17943656,111460.0,111450.0,0.55630203]
[1761366424553,0.17943656,111460.0,111450.0,0.55626203]
[1761366436144,0.17943656,111460.0,111450.0,0.25005902]
[1761366440580,0.17943656,111460.0,111450.0,0.55626203]
[1761366441437,0.17943656,111460.0,111450.0,0.25005902]
[1761366442011,0.79184258,111460.0,111450.0,0.00200001]
[1761366442372,0.81879778,111460.0,111450.0,0.00200001]
[1761366451564,1.15879778,111460.0,111450.0,0.00200001]
[1761366453495,1.15879778,111460.0,111450.0,1e-08]
[1761366453496,3.6493498,111460.0,111450.0,1e-08]
[1761366453730,4.67666569,111460.0,111450.0,1e-08]
[1761366453938,4.65242736,111460.0,111450.0,1e-08]
[1761366454148,2.21565105,111440.0,111430.0,0.004]
[1761366454370,3.69650246,111440.0,111430.0,1e-08]
[1761366454850,3.39429945,111440.0,111430.0,1e-08]
[1761366455091,3.70050246,111440.0,111430.0,1e-08]
[1761366455300,3.70050246,111440.0,111430.0,0.00100001]
[1761366455781,3.70250246,111440.0,111430.0,0.00100001]
[1761366455999,3.70250246,111440.0,111430.0,1e-08]
[1761366456540,3.67827927,111440.0,111430.0,1e-08]
[1761366456728,3.70139642,111440.0,111430.0,1e-08]
[1761366457369,3.61157741,111440.0,111430.0,1e-08]
[1761366458205,0.17953321,111400.0,111380.0,0.28098845]
[1761366458416,0.17968012,111400.0,111390.0,0.08981901]
[1761366458720,0.48588313,111400.0,111390.0,0.08981901]
[1761366458866,0.51284807,111400.0,111390.0,0.08981901]
[1761366459691,0.51284807,111400.0,111390.0,0.09381901]
[1761366460565,0.20664506,111400.0,111390.0,0.09381901]
[1761366461281,0.20664506,111400.0,111390.0,0.29332327]
[1761366461493,0.17968012,111400.0,111390.0,0.09581901]
[1761366461705,0.17968012,111400.0,111390.0,0.29332327]
[1761366461917,0.17968012,111400.0,111390.0,0.27536834]
[1761366463393,0.00014691,111400.0,111390.0,0.58157135]
[1761366463816,0.00014691,111400.0,111390.0,0.60853426]
[1761366464770,0.00014691,111400.0,111390.0,0.30233125]
[1761366464936,0.00014691,111400.0,111390.0,0.60853426]
[1761366468602,0.17931105,111410.0,111390.0,0.60853426]
[1761366468804,0.17931105,111410.0,111400.0,0.1582]
[1761366469011,0.17931105,111410.0,111400.0,0.24801901]
[1761366470537,0.17931105,111410.0,111400.0,0.08981901]
[1761366470758,0.17931105,111410.0,111400.0,0.24801901]
[1761366470964,0.17931105,111410.0,111400.0,0.24901901]
[1761366471348,0.17931105,111410.0,111400.0,0.25201901]
[1761366472545,0.17931105,111410.0,111400.0,0.09381901]
[1761366473399,0.48551406,111410.0,111400.0,0.09381901]
[1761366474769,0.17931105,111410.0,111400.0,0.09381901]
[1761366479302,0.17931105,111410.0,111400.0,0.27335222]
[1761366480161,0.17931105,111410.0,111400.0,0.09381901]
[1761366483989,0.17931105,111410.0,111400.0,0.11177233]
[1761366484333,0.17931105,111410.0,111400.0,0.09381901]
[1761366485976,0.17931105,111410.0,111400.0,0.11177233]
[1761366486769,0.17931105,111410.0,111400.0,0.13873524]
[1761366495977,0.17931105,111410.0,111400.0,0.11177233]
[1761366501318,0.49500452,111420.0,111400.0,0.29130554]
[1761366501543,0.49500452,111420.0,111410.0,0.08981901]
[1761366501750,0.18847602,111420.0,111410.0,0.08981901]
[1761366502637,0.49500452,111420.0,111410.0,0.10777071]
[1761366503934,0.49500452,111420.0,111410.0,0.10877071]
[1761366504273,0.49500452,111420.0,111410.0,0.10977071]
[1761366506258,0.18847602,111420.0,111410.0,0.10977071]
[1761366508293,0.18847602,111420.0,111410.0,0.24993901]
[1761366509910,0.49500452,111420.0,111410.0,0.09181901]
[1761366510099,0.49500452,111420.0,111410.0,0.002]
[1761366510766,0.49500452,111420.0,111410.0,0.001]
[1761366511211,0.17951709,111410.0,111400.0,0.15812]
[1761366511421,0.17951709,111410.0,111400.0,0.24793901]
[1761366512325,0.17951709,111410.0,111400.0,0.08981901]
[1761366512626,0.17951709,111410.0,111400.0,0.09081901]
[1761366513031,0.18051709,111410.0,111400.0,0.09081901]
[1761366514749,0.18051709,111410.0,111400.0,0.10877233]
[1761366515197,0.48704559,111410.0,111400.0,0.10877233]
[1761366515400,0.18051709,111410.0,111400.0,0.10877233]
[1761366518427,0.18051709,111410.0,111400.0,0.09081901]
[1761366521877,0.18051709,111410.0,111400.0,0.10877233]
[1761366525251,0.18051709,111410.0,111400.0,0.09081901]
[1761366536335,0.18051709,111410.0,111400.0,0.10877233]
[1761366536746,0.48706324,111410.0,111400.0,0.10877233]
[1761366538135,0.48706324,111410.0,111400.0,0.09081901]
[1761366540435,0.48706324,111410.0,111400.0,0.10055913]
[1761366543435,0.79360939,111410.0,111400.0,0.01074012]
[1761366543632,1.15301055,111410.0,111400.0,0.01074012]
[1761366547281,1.13360939,111410.0,111400.0,0.01074012]
[1761366547668,1.15298782,111410.0,111400.0,0.01074012]
[1761366549370,1.13360939,111410.0,111400.0,0.01074012]
[1761366550216,0.82706324,111410.0,111400.0,0.01074012]
[1761366555494,0.52051709,111410.0,111400.0,0.01074012]
[1761366555728,0.82706324,111410.0,111400.0,0.01074012]
[1761366566247,0.84643765,111410.0,111400.0,0.01074012]
[1761366571799,1.1529838,111410.0,111400.0,0.01074012]
[1761366595472,0.84643765,111410.0,111400.0,0.01074012]
[1761366596811,0.84653284,111410.0,111400.0,0.01074012]
[1761366608304,0.84656192,111410.0,111400.0,0.01074012]
[1761366608817,0.84656192,111410.0,111400.0,0.01874012]
[1761366615925,0.53992058,111410.0,111400.0,0.01874012]
[1761366616265,0.52051709,111410.0,111400.0,0.04570589]
[1761366617055,0.82715843,111410.0,111400.0,0.04570589]
[1761366618776,0.84655293,111410.0,111400.0,0.04570589]
[1761366620419,0.82715843,111410.0,111400.0,0.04570589]
[1761366630070,0.52051709,111410.0,111400.0,0.04570589]
[1761366630275,0.82715843,111410.0,111400.0,0.04570589]
[1761366630994,0.82715843,111410.0,111400.0,0.01874012]
[1761366634245,0.52051709,111410.0,111400.0,0.01874012]
[1761366636604,0.82715843,111410.0,111400.0,0.01874012]
[1761366640377,0.82715843,111410.0,111400.0,0.009]
[1761366643337,0.84655471,111410.0,111400.0,0.009]
[1761366643537,0.82715843,111410.0,111400.0,0.009]
[1761366649946,0.52051709,111410.0,111400.0,0.009]
[1761366650116,0.82715843,111410.0,111400.0,0.009]
[1761366650335,0.52051709,111410.0,111400.0,0.009]
[1761366650977,0.53991646,111410.0,111400.0,0.009]
[1761366651384,0.8465578,111410.0,111400.0,0.009]
[1761366656754,0.84650989,111410.0,111400.0,0.009]
[1761366669393,0.53991646,111410.0,111400.0,0.009]
[1761366669622,0.52051709,111410.0,111400.0,0.31559343]
[1761366669949,0.52051709,111410.0,111400.0,0.009]
[1761366670395,0.52051709,111410.0,111400.0,0.01875606]
[1761366676130,0.82711052,111410.0,111400.0,0.01875606]
[1761366682293,0.52051709,111410.0,111400.0,0.01875606]
[1761366682497,0.82711052,111410.0,111400.0,0.01875606]
[1761366705294,0.52051709,111410.0,111400.0,0.01875606]
[1761366705499,0.82711052,111410.0,111400.0,0.01875606]
[1761366716735,0.82709238,111410.0,111400.0,0.01875606]
[1761366718123,0.92669347,111410.0,111400.0,0.01875606]
[1761366718339,2.65630046,111410.0,111400.0,0.01875606]
[1761366718540,3.39068867,111410.0,111400.0,0.01875606]
[1761366718752,3.14342515,111410.0,111400.0,0.01875606]
[1761366718963,2.83684986,111410.0,111400.0,0.01875606]